[Event "Snabb-SM för veteraner, 50+ 2019"]
[Site "Schackcentrum, Vegagatan 20, Gothenburg, Sweden"]
[Date "2019.10.05"]
[Round "1.8"]
[White "Skulason, Johann"]
[Black "Andersson, Johan"]
[Result "0-1"]
[TimeControl "15 minutes + 10 seconds per move from move one"]
[WhiteFideId "1733915"]
[BlackFideId "1703935"]
[WhiteElo "1839"]
[BlackElo "2152"]

1. e4 {[%clk 00:15:18]} {[%emt 00:00:01]} d6 {[%clk 00:15:16]} {[%emt
00:00:04]} 2. d4 {[%clk 00:15:26]} {[%emt 00:00:02]} Nf6 {[%clk 00:15:23]}
{[%emt 00:00:03]} 3. Nc3 {[%clk 00:15:35]} {[%emt 00:00:02]} c6 {[%clk
00:15:29]} {[%emt 00:00:03]} 4. Bd3 {[%clk 00:15:42]} {[%emt 00:00:03]} e5
{[%clk 00:15:33]} {[%emt 00:00:06]} 5. Nge2 {[%clk 00:15:44]} {[%emt 00:00:07]}
Be7 {[%clk 00:15:24]} {[%emt 00:00:20]} 6. O-O {[%clk 00:15:52]} {[%emt
00:00:03]} O-O {[%clk 00:15:00]} {[%emt 00:00:33]} 7. h3 {[%clk 00:15:20]}
{[%emt 00:00:43]} Qc7 {[%clk 00:14:22]} {[%emt 00:00:48]} 8. dxe5 {[%clk
00:14:50]} {[%emt 00:00:41]} dxe5 {[%clk 00:14:30]} {[%emt 00:00:03]} 9. Ng3
{[%clk 00:14:56]} {[%emt 00:00:03]} Rd8 {[%clk 00:13:43]} {[%emt 00:00:57]} 10.
Qe2 {[%clk 00:15:00]} {[%emt 00:00:05]} Nbd7 {[%clk 00:13:26]} {[%emt
00:00:27]} 11. Nf5 {[%clk 00:14:19]} {[%emt 00:00:51]} Bf8 {[%clk 00:13:16]}
{[%emt 00:00:20]} 12. Bg5 {[%clk 00:14:18]} {[%emt 00:00:11]} h6 {[%clk
00:13:05]} {[%emt 00:00:21]} 13. Bh4 {[%clk 00:14:16]} {[%emt 00:00:12]} g6
{[%clk 00:12:23]} {[%emt 00:00:52]} 14. Ne3 {[%clk 00:14:19]} {[%emt 00:00:08]}
Bg7 {[%clk 00:11:52]} {[%emt 00:00:41]} 15. Rad1 {[%clk 00:13:27]} {[%emt
00:01:02]} Nc5 {[%clk 00:11:50]} {[%emt 00:00:12]} 16. f3 {[%clk 00:12:08]}
{[%emt 00:01:29]} b5 {[%clk 00:10:53]} {[%emt 00:01:08]} 17. a3 {[%clk
00:09:51]} {[%emt 00:02:27]} a5 {[%clk 00:10:00]} {[%emt 00:01:02]} 18. Ng4
{[%clk 00:06:11]} {[%emt 00:03:50]} Bxg4 {[%clk 00:08:08]} {[%emt 00:02:03]} 19.
fxg4 {[%clk 00:06:19]} {[%emt 00:00:01]} g5 {[%clk 00:07:23]} {[%emt 00:00:55]}
20. Bg3 {[%clk 00:05:49]} {[%emt 00:00:41]} b4 {[%clk 00:07:01]} {[%emt
00:00:32]} 21. Nb1 {[%clk 00:05:43]} {[%emt 00:00:16]} Ne6 {[%clk 00:05:38]}
{[%emt 00:01:32]} 22. Nd2 {[%clk 00:04:25]} {[%emt 00:01:29]} Nf4 {[%clk
00:05:42]} {[%emt 00:00:06]} 23. Bxf4 {[%clk 00:04:28]} {[%emt 00:00:06]} exf4
{[%clk 00:05:50]} {[%emt 00:00:02]} 24. Nc4 {[%clk 00:04:20]} {[%emt 00:00:18]}
Re8 {[%clk 00:05:37]} {[%emt 00:00:22]} 25. e5 {[%clk 00:04:28]} {[%emt
00:00:03]} Nd7 {[%clk 00:04:54]} {[%emt 00:00:53]} 26. Qe4 {[%clk 00:03:43]}
{[%emt 00:00:55]} Nxe5 {[%clk 00:04:40]} {[%emt 00:00:25]} 27. Qh7+ {[%clk
00:03:51]} {[%emt 00:00:02]} Kf8 {[%clk 00:04:48]} {[%emt 00:00:02]} 28. g3
{[%clk 00:03:03]} {[%emt 00:00:58]} Nxc4 {[%clk 00:03:26]} {[%emt 00:01:31]} 29.
Bxc4 {[%clk 00:03:11]} {[%emt 00:00:03]} Qb6+ {[%clk 00:03:21]} {[%emt
00:00:14]} 30. Kg2 {[%clk 00:03:04]} {[%emt 00:00:16]} Qe3 {[%clk 00:03:04]}
{[%emt 00:00:28]} 31. gxf4 {[%clk 00:03:04]} {[%emt 00:00:11]} gxf4 {[%clk
00:03:08]} {[%emt 00:00:06]} 32. Qf5 {[%clk 00:03:01]} {[%emt 00:00:12]} Qg3+
{[%clk 00:02:58]} {[%emt 00:00:20]} 33. Kh1 {[%clk 00:03:06]} {[%emt 00:00:05]}
Qxh3+ {[%clk 00:03:07]} {[%emt 00:00:02]} 34. Kg1 {[%clk 00:03:15]} {[%emt
00:00:01]} Qe3+ {[%clk 00:03:09]} {[%emt 00:00:08]} 35. Rf2 {[%clk 00:03:12]}
{[%emt 00:00:13]} Re7 {[%clk 00:03:05]} {[%emt 00:00:13]} 36. axb4 {[%clk
00:02:52]} {[%emt 00:00:30]} Bd4 {[%clk 00:03:02]} {[%emt 00:00:13]} 37. Rdf1
{[%clk 00:02:49]} {[%emt 00:00:14]} Qg3+ {[%clk 00:03:04]} {[%emt 00:00:07]} 38.
Kh1 {[%clk 00:02:50]} {[%emt 00:00:10]} Bxf2 {[%clk 00:03:10]} {[%emt
00:00:04]} 0-1

[Event "Snabb-SM för veteraner, 50+ 2019"]
[Site "Schackcentrum, Vegagatan 20, Gothenburg, Sweden"]
[Date "2019.10.05"]
[Round "1.9"]
[White "Hautajarvi, Jukka"]
[Black "Jacobsson, Lennart"]
[Result "1-0"]
[TimeControl "15 minutes + 10 seconds per move from move one"]
[WhiteFideId "1716190"]
[BlackFideId "1753320"]
[WhiteElo "2145"]
[BlackElo "1833"]

1. d4 {[%clk 00:15:10]} {[%emt 00:16:18]} d5 {[%clk 00:15:16]} {[%emt
00:00:14]} 2. Nf3 {[%clk 00:15:19]} {[%emt 00:00:10]} Bf5 {[%clk 00:15:12]}
{[%emt 00:00:14]} 3. g3 {[%clk 00:15:23]} {[%emt 00:00:05]} c6 {[%clk
00:15:16]} {[%emt 00:00:07]} 4. Bg2 {[%clk 00:15:30]} {[%emt 00:00:03]} e6
{[%clk 00:15:10]} {[%emt 00:00:16]} 5. c4 {[%clk 00:15:34]} {[%emt 00:00:06]}
Nf6 {[%clk 00:14:59]} {[%emt 00:00:22]} 6. O-O {[%clk 00:15:40]} {[%emt
00:00:04]} h6 {[%clk 00:14:41]} {[%emt 00:00:28]} 7. Nc3 {[%clk 00:15:45]}
{[%emt 00:00:05]} Bd6 {[%clk 00:14:15]} {[%emt 00:00:37]} 8. c5 {[%clk
00:15:34]} {[%emt 00:00:21]} Bc7 {[%clk 00:14:18]} {[%emt 00:00:06]} 9. b4
{[%clk 00:15:25]} {[%emt 00:00:19]} Nbd7 {[%clk 00:14:22]} {[%emt 00:00:06]} 10.
Nh4 {[%clk 00:15:30]} {[%emt 00:00:05]} Bh7 {[%clk 00:14:20]} {[%emt 00:00:12]}
11. f4 {[%clk 00:15:38]} {[%emt 00:00:02]} O-O {[%clk 00:14:03]} {[%emt
00:00:28]} 12. a4 {[%clk 00:15:20]} {[%emt 00:00:27]} Ne4 {[%clk 00:12:19]}
{[%emt 00:01:54]} 13. Bd2 {[%clk 00:15:12]} {[%emt 00:00:17]} Ndf6 {[%clk
00:12:09]} {[%emt 00:00:20]} 14. Ra3 {[%clk 00:14:50]} {[%emt 00:00:33]} Nxc3
{[%clk 00:12:07]} {[%emt 00:00:13]} 15. Bxc3 {[%clk 00:14:52]} {[%emt
00:00:08]} Ne4 {[%clk 00:12:09]} {[%emt 00:00:08]} 16. Bb2 {[%clk 00:14:47]}
{[%emt 00:00:15]} b6 {[%clk 00:11:50]} {[%emt 00:00:29]} 17. f5 {[%clk
00:14:35]} {[%emt 00:00:21]} bxc5 {[%clk 00:11:33]} {[%emt 00:00:27]} 18. dxc5
{[%clk 00:14:41]} {[%emt 00:00:04]} e5 {[%clk 00:07:57]} {[%emt 00:03:46]} 19.
Bxe4 {[%clk 00:13:58]} {[%emt 00:00:53]} dxe4 {[%clk 00:08:06]} {[%emt
00:00:02]} 20. Qc2 {[%clk 00:14:05]} {[%emt 00:00:03]} g5 {[%clk 00:04:45]}
{[%emt 00:03:30]} 21. fxg6 {[%emt 00:00:10]} fxg6 {[%clk 00:04:40]} {[%emt
00:00:11]} 22. Rxf8+ {[%clk 00:14:02]} {[%emt 00:00:17]} Qxf8 {[%clk 00:04:43]}
{[%emt 00:00:07]} 23. Qxe4 {[%clk 00:14:04]} {[%emt 00:00:09]} g5 {[%clk
00:04:41]} {[%emt 00:00:11]} 24. Qc4+ {[%clk 00:14:12]} {[%emt 00:00:03]} Kh8
{[%clk 00:04:41]} {[%emt 00:00:09]} 25. Nf3 {[%clk 00:14:15]} {[%emt 00:00:07]}
Qf5 {[%clk 00:04:42]} {[%emt 00:00:10]} 26. Re3 {[%clk 00:13:16]} {[%emt
00:01:09]} Rf8 {[%clk 00:02:47]} {[%emt 00:02:05]} 27. Bxe5+ {[%clk 00:11:14]}
{[%emt 00:02:11]} Bxe5 {[%clk 00:02:39]} {[%emt 00:00:18]} 28. Rxe5 {[%clk
00:11:21]} {[%emt 00:00:02]} Qb1+ {[%clk 00:02:30]} {[%emt 00:00:19]} 29. Kg2
{[%clk 00:11:28]} {[%emt 00:00:03]} Qa1 {[%clk 00:02:11]} {[%emt 00:00:30]} 30.
Qd4 {[%clk 00:11:17]} {[%emt 00:00:21]} Qxd4 {[%clk 00:02:14]} {[%emt
00:00:07]} 31. Nxd4 {[%clk 00:11:25]} {[%emt 00:00:01]} Rf6 {[%clk 00:02:01]}
{[%emt 00:00:23]} 32. b5 {[%clk 00:11:27]} {[%emt 00:00:08]} cxb5 {[%clk
00:02:02]} {[%emt 00:00:09]} 33. axb5 {[%clk 00:11:36]} Bg6 {[%clk 00:02:04]}
{[%emt 00:00:09]} 34. c6 {[%clk 00:11:41]} {[%emt 00:00:04]} Rf8 {[%clk
00:01:58]} {[%emt 00:00:16]} 35. Re7 {[%clk 00:11:41]} {[%emt 00:00:10]} Bf7
{[%clk 00:01:58]} {[%emt 00:00:10]} 36. e4 {[%clk 00:11:46]} {[%emt 00:00:05]}
Bc4 {[%clk 00:01:58]} {[%emt 00:00:10]} 37. Rxa7 {[%clk 00:11:26]} {[%emt
00:00:30]} Bf1+ {[%clk 00:02:01]} {[%emt 00:00:06]} 38. Kg1 {[%clk 00:11:35]}
{[%emt 00:00:02]} Bd3 {[%clk 00:02:10]} {[%emt 00:00:02]} 39. Ra1 {[%clk
00:10:51]} {[%emt 00:00:53]} Bxe4 {[%clk 00:02:16]} {[%emt 00:00:05]} 40. b6
{[%clk 00:11:00]} Kh7 {[%clk 00:01:53]} {[%emt 00:00:32]} 41. b7 {[%clk
00:11:03]} {[%emt 00:00:07]} h5 {[%clk 00:01:42]} {[%emt 00:00:21]} 42. Ra8
{[%clk 00:11:10]} {[%emt 00:00:03]} 1-0

[Event "Snabb-SM för veteraner, 50+ 2019"]
[Site "Schackcentrum, Vegagatan 20, Gothenburg, Sweden"]
[Date "2019.10.05"]
[Round "1.10"]
[White "Moller, Mikael"]
[Black "Angskog, Kent"]
[Result "0-1"]
[TimeControl "15 minutes + 10 seconds per move from move one"]
[WhiteFideId "1738461"]
[BlackFideId "1703668"]
[WhiteElo "1826"]
[BlackElo "2136"]

1. d4 {[%clk 00:15:19]} d6 {[%clk 00:15:17]} {[%emt 00:00:04]} 2. e4 {[%clk
00:15:25]} {[%emt 00:00:04]} g6 {[%clk 00:15:25]} {[%emt 00:00:02]} 3. Nc3
{[%clk 00:15:30]} {[%emt 00:00:05]} Bg7 {[%clk 00:15:34]} 4. Be3 {[%clk
00:15:31]} {[%emt 00:00:08]} a6 {[%clk 00:15:39]} {[%emt 00:00:06]} 5. Qd2
{[%clk 00:15:37]} {[%emt 00:00:03]} b5 {[%clk 00:15:44]} {[%emt 00:00:05]} 6.
O-O-O {[%clk 00:15:41]} {[%emt 00:00:07]} Nd7 {[%clk 00:15:43]} {[%emt
00:00:11]} 7. f3 {[%clk 00:15:31]} {[%emt 00:00:19]} Bb7 {[%clk 00:15:32]}
{[%emt 00:00:21]} 8. g4 {[%clk 00:15:35]} {[%emt 00:00:06]} Rc8 {[%clk
00:15:28]} {[%emt 00:00:14]} 9. Kb1 {[%clk 00:15:40]} {[%emt 00:00:06]} c5
{[%clk 00:15:25]} {[%emt 00:00:12]} 10. h4 {[%clk 00:15:46]} {[%emt 00:00:04]}
h5 {[%clk 00:14:49]} {[%emt 00:00:46]} 11. g5 {[%clk 00:15:34]} {[%emt
00:00:22]} Qa5 {[%clk 00:12:50]} {[%emt 00:02:08]} 12. Nh3 {[%clk 00:15:38]}
{[%emt 00:00:07]} b4 {[%clk 00:11:20]} {[%emt 00:01:40]} 13. Ne2 {[%clk
00:15:45]} {[%emt 00:00:04]} Nb6 {[%clk 00:10:40]} {[%emt 00:00:50]} 14. Ng3
{[%clk 00:15:34]} {[%emt 00:00:20]} Na4 {[%clk 00:09:32]} {[%emt 00:01:18]} 15.
Ne2 {[%clk 00:14:42]} {[%emt 00:01:03]} c4 {[%clk 00:09:10]} {[%emt 00:00:32]}
16. c3 {[%clk 00:14:43]} {[%emt 00:00:09]} bxc3 {[%clk 00:08:50]} {[%emt
00:00:29]} 17. Nxc3 {[%clk 00:14:51]} {[%emt 00:00:02]} Nb6 {[%clk 00:08:21]}
{[%emt 00:00:39]} 18. Nf2 {[%clk 00:14:49]} {[%emt 00:00:13]} e6 {[%clk
00:08:08]} {[%emt 00:00:23]} 19. Bh3 {[%clk 00:14:31]} {[%emt 00:00:27]} Rb8
{[%clk 00:07:49]} {[%emt 00:00:29]} 20. f4 {[%clk 00:13:58]} {[%emt 00:00:43]}
Ne7 {[%clk 00:07:32]} {[%emt 00:00:27]} 21. f5 {[%clk 00:14:02]} {[%emt
00:00:06]} gxf5 {[%clk 00:07:05]} {[%emt 00:00:37]} 22. exf5 {[%clk 00:14:10]}
{[%emt 00:00:02]} Nxf5 {[%clk 00:07:09]} {[%emt 00:00:06]} 23. Bxf5 {[%clk
00:14:18]} {[%emt 00:00:02]} Qxf5+ {[%clk 00:07:17]} {[%emt 00:00:02]} 24. Ka1
{[%clk 00:14:22]} {[%emt 00:00:06]} Bxh1 {[%clk 00:07:18]} {[%emt 00:00:09]} 25.
Rxh1 {[%clk 00:14:29]} {[%emt 00:00:04]} Nd5 {[%clk 00:07:17]} {[%emt
00:00:11]} 26. Nxd5 {[%clk 00:13:37]} {[%emt 00:01:01]} exd5 {[%clk 00:06:54]}
{[%emt 00:00:34]} 27. Bf4 {[%clk 00:13:13]} {[%emt 00:00:33]} O-O {[%clk
00:05:47]} {[%emt 00:01:17]} 28. Bxd6 {[%clk 00:13:20]} {[%emt 00:00:04]} Rbe8
{[%clk 00:04:48]} {[%emt 00:01:08]} 29. Bxf8 {[%clk 00:13:27]} {[%emt
00:00:03]} Bxf8 {[%clk 00:04:52]} {[%emt 00:00:07]} 30. Rg1 {[%clk 00:13:13]}
{[%emt 00:00:24]} Bg7 {[%clk 00:04:40]} {[%emt 00:00:23]} 31. a3 {[%clk
00:13:04]} {[%emt 00:00:19]} Re6 {[%clk 00:03:41]} {[%emt 00:01:08]} 32. Rg2
{[%clk 00:12:18]} {[%emt 00:00:56]} Qf3 {[%clk 00:03:34]} {[%emt 00:00:16]} 33.
Rg1 {[%clk 00:11:56]} {[%emt 00:00:33]} Re2 {[%clk 00:03:35]} {[%emt 00:00:09]}
0-1

[Event "Snabb-SM för veteraner, 50+ 2019"]
[Site "Schackcentrum, Vegagatan 20, Gothenburg, Sweden"]
[Date "2019.10.05"]
[Round "1.11"]
[White "Gamback, Bjorn"]
[Black "Torell, Torsten"]
[Result "1-0"]
[TimeControl "15 minutes + 10 seconds per move from move one"]
[WhiteTitle "CM"]
[WhiteFideId "1703161"]
[BlackFideId "1723839"]
[WhiteElo "2120"]
[BlackElo "1708"]

1. e4 {[%clk 00:15:17]} {[%emt 00:00:03]} c5 {[%clk 00:15:18]} {[%emt
00:00:02]} 2. c3 {[%clk 00:15:26]} {[%emt 00:00:01]} Nf6 {[%clk 00:15:21]}
{[%emt 00:00:07]} 3. e5 {[%clk 00:15:35]} {[%emt 00:00:01]} Nd5 {[%clk
00:15:29]} {[%emt 00:00:02]} 4. d4 {[%clk 00:15:44]} cxd4 {[%clk 00:15:36]}
{[%emt 00:00:03]} 5. Nf3 {[%clk 00:15:53]} d6 {[%clk 00:14:29]} {[%emt
00:01:17]} 6. Bc4 {[%clk 00:15:59]} {[%emt 00:00:04]} Nb6 {[%clk 00:13:31]}
{[%emt 00:01:08]} 7. Bb5+ {[%clk 00:16:07]} {[%emt 00:00:03]} Bd7 {[%clk
00:13:07]} {[%emt 00:00:34]} 8. Bxd7+ {[%clk 00:16:11]} {[%emt 00:00:05]} Qxd7
{[%clk 00:13:08]} {[%emt 00:00:10]} 9. exd6 {[%clk 00:16:11]} {[%emt 00:00:11]}
Qxd6 {[%clk 00:13:09]} {[%emt 00:00:09]} 10. cxd4 {[%clk 00:16:04]} {[%emt
00:00:16]} g6 {[%clk 00:12:31]} {[%emt 00:00:48]} 11. Nc3 {[%clk 00:15:31]}
{[%emt 00:00:43]} Bg7 {[%clk 00:12:10]} {[%emt 00:00:31]} 12. O-O {[%clk
00:15:37]} {[%emt 00:00:05]} O-O {[%clk 00:12:03]} {[%emt 00:00:17]} 13. Qe2
{[%clk 00:14:44]} {[%emt 00:01:03]} Nc6 {[%clk 00:11:32]} {[%emt 00:00:41]} 14.
Be3 {[%clk 00:14:09]} {[%emt 00:00:45]} Rad8 {[%clk 00:11:24]} {[%emt
00:00:18]} 15. Rfd1 {[%clk 00:14:08]} {[%emt 00:00:10]} Nd5 {[%clk 00:10:51]}
{[%emt 00:00:44]} 16. Ne4 {[%clk 00:12:51]} {[%emt 00:01:26]} Qb8 {[%clk
00:10:24]} {[%emt 00:00:38]} 17. Rac1 {[%clk 00:12:45]} {[%emt 00:00:16]} Nxe3
{[%clk 00:09:30]} {[%emt 00:01:03]} 18. fxe3 {[%clk 00:12:48]} {[%emt
00:00:07]} Nb4 {[%clk 00:08:53]} {[%emt 00:00:46]} 19. Nc3 {[%clk 00:12:14]}
{[%emt 00:00:46]} Nc6 {[%clk 00:08:12]} {[%emt 00:00:51]} 20. a3 {[%clk
00:12:10]} {[%emt 00:00:15]} a6 {[%clk 00:08:16]} {[%emt 00:00:05]} 21. Qf2
{[%clk 00:11:45]} {[%emt 00:00:34]} e5 {[%clk 00:07:41]} {[%emt 00:00:46]} 22.
d5 {[%clk 00:11:43]} {[%emt 00:00:12]} Ne7 {[%clk 00:07:50]} 23. e4 {[%clk
00:11:27]} {[%emt 00:00:26]} h6 {[%clk 00:07:35]} {[%emt 00:00:26]} 24. b4
{[%clk 00:09:56]} {[%emt 00:01:41]} f5 {[%clk 00:07:32]} {[%emt 00:00:12]} 25.
Qc5 {[%clk 00:09:46]} {[%emt 00:00:19]} Qd6 {[%clk 00:07:15]} {[%emt 00:00:27]}
26. Nd2 {[%clk 00:09:15]} {[%emt 00:00:41]} f4 {[%clk 00:06:25]} {[%emt
00:01:01]} 27. Qxd6 {[%clk 00:08:35]} {[%emt 00:00:51]} Rxd6 {[%clk 00:06:31]}
{[%emt 00:00:03]} 28. Na4 {[%clk 00:08:44]} b5 {[%clk 00:05:44]} {[%emt
00:00:57]} 29. Nc5 {[%clk 00:08:43]} {[%emt 00:00:11]} g5 {[%clk 00:05:26]}
{[%emt 00:00:28]} 30. Rf1 {[%clk 00:08:16]} {[%emt 00:00:37]} g4 {[%clk
00:05:31]} {[%emt 00:00:05]} 31. Rc3 {[%clk 00:08:12]} {[%emt 00:00:14]} h5
{[%clk 00:05:37]} {[%emt 00:00:04]} 32. Ndb3 {[%clk 00:08:20]} {[%emt
00:00:02]} Bh6 {[%clk 00:05:36]} {[%emt 00:00:12]} 33. Ne6 {[%clk 00:08:13]}
{[%emt 00:00:16]} Rc8 {[%clk 00:05:40]} {[%emt 00:00:06]} 34. Rxc8+ {[%clk
00:08:12]} {[%emt 00:00:11]} Nxc8 {[%clk 00:05:49]} 35. Rc1 {[%clk 00:08:21]}
Ne7 {[%clk 00:05:47]} {[%emt 00:00:12]} 36. Rc7 {[%clk 00:08:25]} {[%emt
00:00:07]} Kf7 {[%clk 00:05:47]} {[%emt 00:00:10]} 37. Nbc5 {[%clk 00:08:22]}
{[%emt 00:00:12]} f3 {[%clk 00:04:57]} {[%emt 00:01:01]} 38. Nd7 {[%clk
00:07:04]} {[%emt 00:01:28]} Be3+ {[%clk 00:04:34]} {[%emt 00:00:33]} 39. Kf1
{[%clk 00:07:13]} Bd4 {[%clk 00:03:53]} {[%emt 00:00:52]} 40. Nxd4 {[%clk
00:06:17]} {[%emt 00:01:06]} exd4 {[%clk 00:03:58]} {[%emt 00:00:05]} 41. gxf3
{[%clk 00:06:26]} {[%emt 00:00:01]} gxf3 {[%clk 00:03:56]} {[%emt 00:00:12]} 42.
Kf2 {[%clk 00:06:35]} Ng6 {[%clk 00:02:22]} {[%emt 00:01:44]} 43. Kxf3 {[%clk
00:05:25]} {[%emt 00:01:21]} Ke8 {[%clk 00:01:59]} {[%emt 00:00:33]} 44. Nc5
{[%clk 00:05:22]} {[%emt 00:00:12]} Ne5+ {[%clk 00:01:50]} {[%emt 00:00:20]} 45.
Ke2 {[%clk 00:05:09]} {[%emt 00:00:22]} Nc4 {[%clk 00:01:49]} {[%emt 00:00:12]}
46. Kd3 {[%clk 00:05:05]} {[%emt 00:00:14]} Nxa3 {[%clk 00:01:02]} {[%emt
00:00:58]} 47. Ne6 {[%clk 00:05:06]} {[%emt 00:00:08]} Nc4 {[%clk 00:00:22]}
{[%emt 00:00:50]} 48. Kxd4 {[%clk 00:04:55]} {[%emt 00:00:21]} 1-0

[Event "Snabb-SM för veteraner, 50+ 2019"]
[Site "Schackcentrum, Vegagatan 20, Gothenburg, Sweden"]
[Date "2019.10.05"]
[Round "2.1"]
[White "Angskog, Kent"]
[Black "Andreasson, Ingvar"]
[Result "0-1"]
[TimeControl "15 minutes + 10 seconds per move from move one"]
[WhiteFideId "1703668"]
[BlackFideId "1700294"]
[WhiteElo "2136"]
[BlackElo "2413"]

1. c4 {[%clk 00:15:14]} {[%emt 00:00:05]} g6 {[%clk 00:15:12]} {[%emt
00:00:08]} 2. Nc3 {[%clk 00:14:33]} {[%emt 00:00:51]} Bg7 {[%clk 00:15:16]}
{[%emt 00:00:06]} 3. g3 {[%clk 00:14:26]} {[%emt 00:00:18]} c5 {[%clk
00:15:02]} {[%emt 00:00:24]} 4. Bg2 {[%clk 00:14:30]} {[%emt 00:00:05]} Nc6
{[%clk 00:14:55]} {[%emt 00:00:18]} 5. a3 {[%clk 00:13:19]} {[%emt 00:01:20]}
Nh6 {[%clk 00:13:53]} {[%emt 00:01:12]} 6. Rb1 {[%clk 00:12:59]} {[%emt
00:00:31]} Nf5 {[%clk 00:13:49]} {[%emt 00:00:13]} 7. b4 {[%clk 00:10:51]}
{[%emt 00:02:18]} Ne5 {[%emt 00:02:27]} 8. Qb3 {[%emt 00:00:52]} Nd4 {[%clk
00:09:22]} {[%emt 00:01:17]} 9. Qa2 {[%clk 00:10:58]} {[%emt 00:00:04]} cxb4
{[%clk 00:09:15]} {[%emt 00:00:17]} 10. axb4 {[%clk 00:11:04]} {[%emt
00:00:04]} h5 {[%clk 00:09:13]} {[%emt 00:00:13]} 11. f4 {[%clk 00:09:48]}
{[%emt 00:01:26]} Ng4 {[%clk 00:09:11]} {[%emt 00:00:12]} 12. e3 {[%clk
00:07:30]} {[%emt 00:02:28]} Nf5 {[%clk 00:09:14]} {[%emt 00:00:07]} 13. Nge2
{[%clk 00:07:30]} {[%emt 00:00:10]} d6 {[%clk 00:08:34]} {[%emt 00:00:50]} 14.
h3 {[%clk 00:06:33]} {[%emt 00:01:06]} Ngh6 {[%clk 00:08:38]} {[%emt 00:00:05]}
15. O-O {[%clk 00:04:15]} {[%emt 00:02:28]} e5 {[%emt 00:00:48]} 16. fxe5
{[%clk 00:03:32]} {[%emt 00:00:21]} dxe5 {[%clk 00:08:35]} {[%emt 00:00:07]} 17.
Nd5 {[%clk 00:03:33]} {[%emt 00:00:09]} O-O {[%emt 00:00:45]} 18. e4 {[%emt
00:00:14]} Nd6 {[%emt 00:00:12]} 19. d3 {[%clk 00:03:14]} {[%emt 00:00:04]} Be6
{[%clk 00:06:36]} {[%emt 00:01:53]} 20. Nec3 {[%clk 00:03:01]} {[%emt
00:00:23]} f5 {[%clk 00:05:00]} {[%emt 00:01:46]} 21. c5 {[%clk 00:02:43]}
{[%emt 00:00:28]} Ndf7 {[%clk 00:04:45]} {[%emt 00:00:25]} 22. Qa5 {[%clk
00:02:25]} {[%emt 00:00:29]} h4 {[%clk 00:03:25]} {[%emt 00:01:29]} 23. Qxd8
{[%clk 00:02:07]} {[%emt 00:00:29]} Raxd8 {[%clk 00:03:26]} {[%emt 00:00:08]}
24. gxh4 {[%clk 00:02:07]} {[%emt 00:00:11]} f4 {[%clk 00:03:36]} 25. b5 {[%clk
00:01:57]} {[%emt 00:00:20]} g5 {[%clk 00:03:44]} {[%emt 00:00:01]} 26. c6
{[%clk 00:01:38]} {[%emt 00:00:29]} gxh4 {[%clk 00:02:03]} {[%emt 00:01:52]} 27.
Ba3 {[%clk 00:00:51]} {[%emt 00:00:57]} Ng5 {[%clk 00:02:11]} {[%emt 00:00:01]}
28. Bxf8 {[%clk 00:00:56]} {[%emt 00:00:06]} Bxf8 {[%clk 00:02:05]} {[%emt
00:00:16]} 29. Kh2 {[%clk 00:00:49]} {[%emt 00:00:17]} Rc8 {[%clk 00:01:33]}
{[%emt 00:00:41]} 30. cxb7 {[%clk 00:00:46]} {[%emt 00:00:14]} Rb8 {[%clk
00:01:42]} 31. b6 {[%clk 00:00:51]} {[%emt 00:00:07]} Rxb7 {[%clk 00:01:34]}
{[%emt 00:00:16]} 32. bxa7 {[%clk 00:00:59]} {[%emt 00:00:02]} Rxa7 {[%clk
00:01:43]} 33. Rb6 {[%clk 00:01:00]} {[%emt 00:00:10]} Rf7 {[%clk 00:01:45]}
{[%emt 00:00:08]} 34. Bf3 {[%clk 00:00:37]} {[%emt 00:00:33]} Bc5 {[%clk
00:01:07]} {[%emt 00:00:49]} 35. Rc6 {[%clk 00:00:40]} {[%emt 00:00:07]} Bxh3
{[%clk 00:00:52]} {[%emt 00:00:25]} 36. Rxc5 {[%clk 00:00:40]} {[%emt
00:00:10]} Bxf1 {[%clk 00:01:00]} {[%emt 00:00:02]} 37. Bh5 {[%clk 00:00:45]}
{[%emt 00:00:04]} Ra7 {[%clk 00:01:00]} {[%emt 00:00:10]} 38. Rc6 {[%clk
00:00:29]} {[%emt 00:00:27]} Nhf7 {[%clk 00:00:38]} {[%emt 00:00:32]} 39. Nf6+
{[%clk 00:00:27]} {[%emt 00:00:12]} Kg7 {[%clk 00:00:43]} {[%emt 00:00:05]} 40.
Ncd5 {[%clk 00:00:27]} {[%emt 00:00:10]} Bxd3 {[%clk 00:00:29]} {[%emt
00:00:24]} 41. Rc8 {[%clk 00:00:33]} {[%emt 00:00:04]} Ra2+ {[%clk 00:00:31]}
{[%emt 00:00:09]} 42. Kh1 {[%clk 00:00:34]} {[%emt 00:00:08]} Bxe4+ {[%clk
00:00:36]} {[%emt 00:00:05]} 43. Nxe4 {[%clk 00:00:42]} {[%emt 00:00:02]} Nxe4
{[%clk 00:00:46]} 44. Bxf7 {[%clk 00:00:18]} {[%emt 00:00:33]} Kxf7 {[%clk
00:00:52]} {[%emt 00:00:04]} 45. Rh8 {[%clk 00:00:20]} {[%emt 00:00:08]} h3
{[%clk 00:01:01]} 0-1